[Event "Live Chess"]
[Site "Chess.com"]
[Date "2023.05.21"]
[Round "-"]
[White "domrobson"]
[Black "yeetpizza74"]
[Result "1-0"]
[WhiteElo "1746"]
[BlackElo "465"]
[TimeControl "300"]
[EndTime "1:45:04 PDT"]
[Termination "domrobson won by checkmate"]

1. d4 {[%clk 0:04:59.7]} 1... e5 {[%clk 0:04:58]} 2. dxe5 {[%clk 0:04:59]} 2...
Nc6 {[%clk 0:04:56.7]} 3. Nf3 {[%clk 0:04:58.3]} 3... Qe7 {[%clk 0:04:55.3]} 4.
Bg5 {[%clk 0:04:57.8]} 4... Qb4+ {[%clk 0:04:51.4]} 5. Nc3 {[%clk 0:04:56.2]}
5... Qxb2 {[%clk 0:04:35.5]} 6. Bd2 {[%clk 0:04:54.6]} 6... Bb4 {[%clk
0:04:30.3]} 7. Rb1 {[%clk 0:04:52.6]} 7... Qa3 {[%clk 0:04:25.3]} 8. Nd5 {[%clk
0:04:51.6]} 8... Bxd2+ {[%clk 0:04:05.1]} 9. Qxd2 {[%clk 0:04:51.5]} 9... Kd8
{[%clk 0:03:50.7]} 10. e4 {[%clk 0:04:47]} 10... Qxa2 {[%clk 0:03:43.1]} 11. Rd1
{[%clk 0:04:44.2]} 11... f6 {[%clk 0:03:34.1]} 12. exf6 {[%clk 0:04:40.6]} 12...
Nxf6 {[%clk 0:03:28.9]} 13. Nxf6 {[%clk 0:04:37.6]} 13... gxf6 {[%clk
0:03:26.1]} 14. Bd3 {[%clk 0:04:37.1]} 14... Qf7 {[%clk 0:03:12.6]} 15. O-O
{[%clk 0:04:35.7]} 15... d6 {[%clk 0:03:02.9]} 16. Bb5 {[%clk 0:04:27.6]} 16...
Bd7 {[%clk 0:02:57.8]} 17. Bxc6 {[%clk 0:04:25]} 17... Bxc6 {[%clk 0:02:56.6]}
18. Rfe1 {[%clk 0:04:21.9]} 18... f5 {[%clk 0:02:48.9]} 19. Ne5 {[%clk
0:04:17.4]} 19... Qf8 {[%clk 0:02:29.3]} 20. Nxc6+ {[%clk 0:04:16]} 20... bxc6
{[%clk 0:02:22.6]} 21. e5 {[%clk 0:04:15.2]} 21... Rg8 {[%clk 0:02:10.9]} 22.
exd6 {[%clk 0:04:12.7]} 22... cxd6 {[%clk 0:02:08.3]} 23. Qxd6+ {[%clk
0:04:11.7]} 23... Kc8 {[%clk 0:01:52.9]} 24. Qxc6+ {[%clk 0:04:09.8]} 24... Kb8
{[%clk 0:01:47.5]} 25. Rb1+ {[%clk 0:04:09.7]} 25... Qb4 {[%clk 0:01:40.6]} 26.
Rxb4# {[%clk 0:04:09.6]} 1-0

[Event "Live Chess"]
[Site "Chess.com"]
[Date "2023.05.21"]
[Round "-"]
[White "djw60"]
[Black "ExIsambard"]
[Result "1-0"]
[WhiteElo "2139"]
[BlackElo "1907"]
[TimeControl "300"]
[EndTime "1:45:24 PDT"]
[Termination "djw60 won by resignation"]

1. Nf3 {[%clk 0:04:56.9]} 1... d5 {[%clk 0:04:57.4]} 2. b3 {[%clk 0:04:54.7]}
2... Nf6 {[%clk 0:04:56.6]} 3. Bb2 {[%clk 0:04:53.9]} 3... c6 {[%clk 0:04:53.9]}
4. g3 {[%clk 0:04:51.1]} 4... Bg4 {[%clk 0:04:53.1]} 5. Bg2 {[%clk 0:04:50.2]}
5... e6 {[%clk 0:04:52.3]} 6. d3 {[%clk 0:04:46.3]} 6... Nbd7 {[%clk 0:04:51.4]}
7. Nbd2 {[%clk 0:04:45.6]} 7... Bd6 {[%clk 0:04:50.6]} 8. e4 {[%clk 0:04:41.9]}
8... dxe4 {[%clk 0:04:49.5]} 9. dxe4 {[%clk 0:04:40.5]} 9... Ne5 {[%clk
0:04:43.5]} 10. h3 {[%clk 0:04:31.1]} 10... Nxf3+ {[%clk 0:04:38.6]} 11. Nxf3
{[%clk 0:04:27.8]} 11... Bxf3 {[%clk 0:04:28.1]} 12. Qxf3 {[%clk 0:04:25.3]}
12... e5 {[%clk 0:04:23.5]} 13. O-O-O {[%clk 0:04:22.1]} 13... Qc7 {[%clk
0:04:17.1]} 14. g4 {[%clk 0:04:00.9]} 14... a5 {[%clk 0:04:14.1]} 15. g5 {[%clk
0:03:57.3]} 15... Nd7 {[%clk 0:04:13.3]} 16. h4 {[%clk 0:03:54]} 16... a4 {[%clk
0:04:11.8]} 17. h5 {[%clk 0:03:52.4]} 17... axb3 {[%clk 0:04:10.2]} 18. axb3
{[%clk 0:03:50.8]} 18... O-O {[%clk 0:03:46.6]} 19. h6 {[%clk 0:03:41.8]} 19...
g6 {[%clk 0:03:44.3]} 20. Rxd6 {[%clk 0:03:32.3]} 20... Qxd6 {[%clk 0:03:40.7]}
21. Rd1 {[%clk 0:03:31.6]} 21... Qe6 {[%clk 0:03:37.3]} 22. Rxd7 {[%clk
0:03:30.4]} 22... Qxd7 {[%clk 0:03:36.5]} 23. Qf6 {[%clk 0:03:29]} 1-0

[Event "Live Chess"]
[Site "Chess.com"]
[Date "2023.05.21"]
[Round "-"]
[White "Ian-Morley"]
[Black "Long1968"]
[Result "1-0"]
[WhiteElo "1064"]
[BlackElo "982"]
[TimeControl "300"]
[EndTime "1:45:45 PDT"]
[Termination "Ian-Morley won on time"]

1. e4 {[%clk 0:04:58]} 1... e6 {[%clk 0:04:58.1]} 2. d4 {[%clk 0:04:56.7]} 2...
d5 {[%clk 0:04:56.8]} 3. e5 {[%clk 0:04:56.1]} 3... c5 {[%clk 0:04:54.4]} 4. c3
{[%clk 0:04:55.5]} 4... Nc6 {[%clk 0:04:51.2]} 5. Nd2 {[%clk 0:04:54.7]} 5...
cxd4 {[%clk 0:04:48.4]} 6. cxd4 {[%clk 0:04:53.9]} 6... Qb6 {[%clk 0:04:44.7]}
7. Qb3 {[%clk 0:04:52.3]} 7... Bb4 {[%clk 0:04:36.6]} 8. Nf3 {[%clk 0:04:44.8]}
8... Bxd2+ {[%clk 0:04:20.1]} 9. Bxd2 {[%clk 0:04:43.6]} 9... Nxd4 {[%clk
0:03:58.2]} 10. Qxb6 {[%clk 0:04:41.7]} 10... Nxf3+ {[%clk 0:03:46.8]} 11. gxf3
{[%clk 0:04:37.6]} 11... axb6 {[%clk 0:03:44.4]} 12. Bb5+ {[%clk 0:04:36.5]}
12... Bd7 {[%clk 0:03:38.6]} 13. Bxd7+ {[%clk 0:04:34.9]} 13... Kxd7 {[%clk
0:03:36.3]} 14. O-O {[%clk 0:04:34.4]} 14... Ne7 {[%clk 0:03:33.5]} 15. Rfc1
{[%clk 0:04:32.9]} 15... Nc6 {[%clk 0:03:31]} 16. b4 {[%clk 0:04:29.6]} 16...
Ra4 {[%clk 0:03:18]} 17. b5 {[%clk 0:04:24.5]} 17... Nxe5 {[%clk 0:03:08]} 18.
Bc3 {[%clk 0:04:18.4]} 18... f6 {[%clk 0:02:57.1]} 19. Bxe5 {[%clk 0:04:17]}
19... fxe5 {[%clk 0:02:52.2]} 20. Rc3 {[%clk 0:04:14.8]} 20... Rc8 {[%clk
0:02:15.6]} 21. Rxc8 {[%clk 0:04:10.8]} 21... Kxc8 {[%clk 0:02:13.1]} 22. Rc1+
{[%clk 0:04:08.6]} 22... Rc4 {[%clk 0:02:09.9]} 23. Re1 {[%clk 0:03:57.6]} 23...
e4 {[%clk 0:02:03.9]} 24. fxe4 {[%clk 0:03:55.5]} 24... Rxe4 {[%clk 0:02:00.3]}
25. Rxe4 {[%clk 0:03:48.9]} 25... dxe4 {[%clk 0:01:57.7]} 26. Kg2 {[%clk
0:03:48.3]} 26... Kd7 {[%clk 0:01:55]} 27. Kg3 {[%clk 0:03:47.8]} 27... Kd6
{[%clk 0:01:49.4]} 28. Kf4 {[%clk 0:03:47.1]} 28... Kd5 {[%clk 0:01:45.5]} 29.
Ke3 {[%clk 0:03:46]} 29... Kc5 {[%clk 0:01:32.8]} 30. Kxe4 {[%clk 0:03:40.2]}
30... Kxb5 {[%clk 0:01:29.1]} 31. Ke5 {[%clk 0:03:39.6]} 31... Ka4 {[%clk
0:01:26.3]} 32. Kxe6 {[%clk 0:03:38.6]} 32... b5 {[%clk 0:01:23.7]} 33. f4
{[%clk 0:03:37.7]} 33... b4 {[%clk 0:01:20.8]} 34. f5 {[%clk 0:03:37.1]} 34...
Ka3 {[%clk 0:01:12.3]} 35. Kf7 {[%clk 0:03:36.2]} 35... Kxa2 {[%clk 0:01:06.4]}
36. Kxg7 {[%clk 0:03:35.5]} 36... b3 {[%clk 0:00:58]} 37. f6 {[%clk 0:03:34.2]}
37... b2 {[%clk 0:00:55.9]} 38. f7 {[%clk 0:03:33.6]} 38... b1=Q {[%clk
0:00:52.5]} 39. f8=Q {[%clk 0:03:32.5]} 39... Qg1+ {[%clk 0:00:31.3]} 40. Kxh7
{[%clk 0:03:30.9]} 40... Qxh2+ {[%clk 0:00:28.4]} 41. Kg6 {[%clk 0:03:27.2]}
41... Qg2+ {[%clk 0:00:24.6]} 42. Kh5 {[%clk 0:03:24.7]} 42... Qd5+ {[%clk
0:00:17.8]} 43. Kg4 {[%clk 0:03:21.1]} 43... Qc4+ {[%clk 0:00:13]} 44. Kg3
{[%clk 0:03:15.9]} 44... Qc3+ {[%clk 0:00:08.6]} 45. Kg4 {[%clk 0:03:14.5]}
45... Qc4+ {[%clk 0:00:01.5]} 46. Kg5 {[%clk 0:03:11.7]} 1-0

[Event "Live Chess"]
[Site "Chess.com"]
[Date "2023.05.21"]
[Round "-"]
[White "TheSmoulderingMaster"]
[Black "Shepherds_Pie"]
[Result "0-1"]
[WhiteElo "1693"]
[BlackElo "1926"]
[TimeControl "300"]
[EndTime "1:45:45 PDT"]
[Termination "Shepherds_Pie won by resignation"]

1. e4 {[%clk 0:04:58.3]} 1... e6 {[%clk 0:04:58.6]} 2. d4 {[%clk 0:04:57.1]}
2... d5 {[%clk 0:04:54.6]} 3. Nc3 {[%clk 0:04:56.2]} 3... Bb4 {[%clk 0:04:52.3]}
4. e5 {[%clk 0:04:54.8]} 4... c5 {[%clk 0:04:51.3]} 5. a3 {[%clk 0:04:53.4]}
5... Ba5 {[%clk 0:04:50.2]} 6. b4 {[%clk 0:04:51.6]} 6... cxd4 {[%clk
0:04:49.1]} 7. Nb5 {[%clk 0:04:50.9]} 7... Bc7 {[%clk 0:04:48.1]} 8. Bf4 {[%clk
0:04:47.6]} 8... Nc6 {[%clk 0:04:43.7]} 9. Nf3 {[%clk 0:04:43.2]} 9... Nge7
{[%clk 0:04:42.1]} 10. Nbxd4 {[%clk 0:04:38.6]} 10... Bd7 {[%clk 0:04:39]} 11.
Nb5 {[%clk 0:04:36.7]} 11... a6 {[%clk 0:04:36.8]} 12. Nd6+ {[%clk 0:04:35.6]}
12... Bxd6 {[%clk 0:04:35.7]} 13. exd6 {[%clk 0:04:35.5]} 13... Nf5 {[%clk
0:04:34.7]} 14. Bd3 {[%clk 0:04:33.3]} 14... Nfd4 {[%clk 0:04:26.1]} 15. Nxd4
{[%clk 0:04:27.9]} 15... Nxd4 {[%clk 0:04:25]} 16. O-O {[%clk 0:04:26.3]} 16...
Qb6 {[%clk 0:04:18.5]} 17. Be3 {[%clk 0:04:21.4]} 17... e5 {[%clk 0:04:13.3]}
18. c3 {[%clk 0:04:19.8]} 18... O-O {[%clk 0:04:08.6]} 19. cxd4 {[%clk
0:04:18.2]} 19... exd4 {[%clk 0:04:07.6]} 20. Bxd4 {[%clk 0:04:15.9]} 20... Qxd6
{[%clk 0:04:04.5]} 21. Qh5 {[%clk 0:04:09.7]} 21... f5 {[%clk 0:03:59.9]} 22.
Qg5 {[%clk 0:04:02.8]} 22... Rf7 {[%clk 0:03:57.6]} 23. Rfe1 {[%clk 0:03:59.2]}
23... h6 {[%clk 0:03:51.1]} 24. Qh5 {[%clk 0:03:55.1]} 24... Be8 {[%clk
0:03:45.7]} 25. Qf3 {[%clk 0:03:48.4]} 25... Rc8 {[%clk 0:03:39.9]} 26. Re5
{[%clk 0:03:45.3]} 26... Qg6 {[%clk 0:03:31.9]} 27. Rae1 {[%clk 0:03:40.3]}
27... Bd7 {[%clk 0:03:28.5]} 28. Re7 {[%clk 0:03:00.4]} 28... Rxe7 {[%clk
0:03:22.2]} 29. Rxe7 {[%clk 0:02:59.3]} 29... Rc1+ {[%clk 0:03:20.5]} 30. Bf1
{[%clk 0:02:57.5]} 30... Bb5 {[%clk 0:03:19]} 31. Qxd5+ {[%clk 0:02:52]} 31...
Kh7 {[%clk 0:03:13.4]} 32. h3 {[%clk 0:02:25.8]} 32... Rxf1+ {[%clk 0:03:09.1]}
33. Kh2 {[%clk 0:02:25]} 33... Bc6 {[%clk 0:02:58.9]} 34. Rxg7+ {[%clk
0:02:23.3]} 34... Qxg7 {[%clk 0:02:57.6]} 35. Qxf5+ {[%clk 0:02:21.7]} 35... Qg6
{[%clk 0:02:51.2]} 36. Qd3 {[%clk 0:02:18.6]} 36... Qxd3 {[%clk 0:02:48.8]} 0-1

[Event "Live Chess"]
[Site "Chess.com"]
[Date "2023.05.21"]
[Round "-"]
[White "Ferrarifan27"]
[Black "JoeRoot66"]
[Result "1-0"]
[WhiteElo "2094"]
[BlackElo "1919"]
[TimeControl "300"]
[EndTime "1:45:59 PDT"]
[Termination "Ferrarifan27 won by resignation"]

1. e4 {[%clk 0:04:59]} 1... c6 {[%clk 0:04:59.6]} 2. d4 {[%clk 0:04:57.8]} 2...
d5 {[%clk 0:04:59.5]} 3. e5 {[%clk 0:04:57]} 3... Bf5 {[%clk 0:04:59.2]} 4. h4
{[%clk 0:04:55.6]} 4... h5 {[%clk 0:04:58.5]} 5. Bg5 {[%clk 0:04:52.8]} 5... Qb6
{[%clk 0:04:58.1]} 6. Bd3 {[%clk 0:04:44.7]} 6... Qxd4 {[%clk 0:04:57.5]} 7. Nf3
{[%clk 0:04:33.2]} 7... Qg4 {[%clk 0:04:56.7]} 8. Be2 {[%clk 0:04:14.1]} 8... e6
{[%clk 0:04:47.7]} 9. Nd4 {[%clk 0:03:58.5]} 9... Qxg2 {[%clk 0:04:45.4]} 10.
Bf3 {[%clk 0:03:57.4]} 10... Qxh1+ {[%clk 0:04:31.6]} 1-0

[Event "Live Chess"]
[Site "Chess.com"]
[Date "2023.05.21"]
[Round "-"]
[White "MaximKris"]
[Black "Pablo_dmp"]
[Result "0-1"]
[WhiteElo "1811"]
[BlackElo "1854"]
[TimeControl "300"]
[EndTime "1:46:09 PDT"]
[Termination "Pablo_dmp won by checkmate"]

1. e4 {[%clk 0:04:59.2]} 1... c5 {[%clk 0:04:58.1]} 2. Nf3 {[%clk 0:04:57.4]}
2... Nc6 {[%clk 0:04:57]} 3. Bb5 {[%clk 0:04:55.2]} 3... g6 {[%clk 0:04:55]} 4.
O-O {[%clk 0:04:53.6]} 4... Bg7 {[%clk 0:04:53.4]} 5. Bxc6 {[%clk 0:04:52.9]}
5... dxc6 {[%clk 0:04:52.3]} 6. c3 {[%clk 0:04:51.7]} 6... e5 {[%clk 0:04:50.7]}
7. Re1 {[%clk 0:04:50.5]} 7... Ne7 {[%clk 0:04:46.5]} 8. d3 {[%clk 0:04:49.7]}
8... O-O {[%clk 0:04:43.6]} 9. Be3 {[%clk 0:04:49.4]} 9... b6 {[%clk 0:04:41.4]}
10. Qc2 {[%clk 0:04:49]} 10... Bg4 {[%clk 0:04:36.6]} 11. Nbd2 {[%clk
0:04:48.2]} 11... Qd6 {[%clk 0:04:31.5]} 12. h3 {[%clk 0:04:46.6]} 12... Be6
{[%clk 0:04:26.9]} 13. Rac1 {[%clk 0:04:40.6]} 13... Rad8 {[%clk 0:04:24.4]} 14.
d4 {[%clk 0:04:35]} 14... cxd4 {[%clk 0:04:21.2]} 15. cxd4 {[%clk 0:04:33.6]}
15... exd4 {[%clk 0:04:17.7]} 16. Bg5 {[%clk 0:03:36.8]} 16... f6 {[%clk
0:04:07.9]} 17. Bh4 {[%clk 0:02:51.6]} 17... c5 {[%clk 0:04:01.7]} 18. Nc4
{[%clk 0:02:44.3]} 18... Qf4 {[%clk 0:03:47.9]} 19. Bg3 {[%clk 0:02:37.3]} 19...
Qh6 {[%clk 0:03:39.4]} 20. Bd6 {[%clk 0:02:29.6]} 20... Rfe8 {[%clk 0:03:29.5]}
21. Bxe7 {[%clk 0:02:24.2]} 21... Rxe7 {[%clk 0:03:29.4]} 22. e5 {[%clk
0:02:19.6]} 22... Bxc4 {[%clk 0:03:21.4]} 23. Qxc4+ {[%clk 0:02:11.4]} 23... Kh8
{[%clk 0:03:16.1]} 24. exf6 {[%clk 0:01:54.4]} 24... Rxe1+ {[%clk 0:03:16]} 25.
Rxe1 {[%clk 0:01:53]} 25... Bxf6 {[%clk 0:03:14.8]} 26. Qe6 {[%clk 0:01:39.1]}
26... Qg7 {[%clk 0:03:08.8]} 27. Nd2 {[%clk 0:01:00.7]} 27... d3 {[%clk
0:03:01.3]} 28. Ne4 {[%clk 0:00:57.6]} 28... Bxb2 {[%clk 0:02:56.4]} 29. Ng5
{[%clk 0:00:46.3]} 29... Rf8 {[%clk 0:02:53.9]} 30. Rd1 {[%clk 0:00:26.5]} 30...
Qd4 {[%clk 0:02:30.1]} 31. Nf7+ {[%clk 0:00:17]} 31... Kg7 {[%clk 0:02:27.7]}
32. Ng5 {[%clk 0:00:08.9]} 32... Qxf2+ {[%clk 0:02:21.4]} 33. Kh1 {[%clk
0:00:08.4]} 33... d2 {[%clk 0:02:12.9]} 34. Qe7+ {[%clk 0:00:07.2]} 34... Kh6
{[%clk 0:02:05]} 35. Qxh7+ {[%clk 0:00:06.2]} 35... Kxg5 {[%clk 0:02:03.8]} 36.
h4+ {[%clk 0:00:05]} 36... Kf6 {[%clk 0:01:54.5]} 37. Qh6 {[%clk 0:00:04.5]}
37... Qe1+ {[%clk 0:01:48.2]} 38. Kh2 {[%clk 0:00:04]} 38... Qxd1 {[%clk
0:01:47]} 39. Qxf8+ {[%clk 0:00:03.5]} 39... Ke6 {[%clk 0:01:32.6]} 40. Qe8+
{[%clk 0:00:03.4]} 40... Kd5 {[%clk 0:01:29.1]} 41. Qd8+ {[%clk 0:00:03.3]}
41... Kc4 {[%clk 0:01:26.7]} 42. Qg8+ {[%clk 0:00:03.2]} 42... Kb4 {[%clk
0:01:23.6]} 43. Qxg6 {[%clk 0:00:03.1]} 43... Be5+ {[%clk 0:01:19.4]} 44. g3
{[%clk 0:00:02.1]} 44... Qe2+ {[%clk 0:01:17]} 45. Kh3 {[%clk 0:00:02]} 45...
d1=Q {[%clk 0:01:15]} 46. Qe4+ {[%clk 0:00:00.6]} 46... Qxe4 {[%clk 0:01:12.1]}
47. h5 {[%clk 0:00:00.5]} 47... Qdh1# {[%clk 0:01:10.2]} 0-1

[Event "Live Chess"]
[Site "Chess.com"]
[Date "2023.05.21"]
[Round "-"]
[White "MarkLim1"]
[Black "chessfiction"]
[Result "0-1"]
[WhiteElo "1726"]
[BlackElo "2330"]
[TimeControl "300"]
[EndTime "1:46:17 PDT"]
[Termination "chessfiction won by resignation"]

1. d4 {[%clk 0:04:58]} 1... d5 {[%clk 0:04:58.7]} 2. Nf3 {[%clk 0:04:57]} 2...
e5 {[%clk 0:04:57.8]} 3. dxe5 {[%clk 0:04:55.3]} 3... Nc6 {[%clk 0:04:56.2]} 4.
Bf4 {[%clk 0:04:53.5]} 4... Bg4 {[%clk 0:04:54.9]} 5. e3 {[%clk 0:04:50.6]} 5...
Bc5 {[%clk 0:04:53.6]} 6. Bb5 {[%clk 0:04:48.6]} 6... Qe7 {[%clk 0:04:52.4]} 7.
Nbd2 {[%clk 0:04:44.7]} 7... g5 {[%clk 0:04:51.4]} 8. Bxg5 {[%clk 0:04:41]} 8...
Qe6 {[%clk 0:04:49.8]} 9. O-O {[%clk 0:04:34.3]} 9... Nh6 {[%clk 0:04:43.1]} 10.
Bf4 {[%clk 0:04:25.5]} 10... Rg8 {[%clk 0:04:38.5]} 11. c4 {[%clk 0:04:18.8]}
11... O-O-O {[%clk 0:04:36.8]} 12. Qb3 {[%clk 0:04:07.3]} 12... Nf5 {[%clk
0:04:10.2]} 13. cxd5 {[%clk 0:03:53.8]} 13... Qg6 {[%clk 0:03:58.3]} 14. dxc6
{[%clk 0:03:44]} 14... Bxf3 {[%clk 0:03:56]} 15. cxb7+ {[%clk 0:03:22.1]} 15...
Bxb7 {[%clk 0:03:55.9]} 16. Bg3 {[%clk 0:02:50.3]} 16... Rxd2 {[%clk 0:03:54.3]}
17. Qc3 {[%clk 0:02:39.7]} 17... Nxg3 {[%clk 0:03:45.1]} 18. hxg3 {[%clk
0:02:36.7]} 18... Qxg3 {[%clk 0:03:37.9]} 19. fxg3 {[%clk 0:02:10.7]} 19...
Rxg2+ {[%clk 0:03:37.8]} 20. Kh1 {[%clk 0:02:08.9]} 20... Rc2+ {[%clk
0:03:19.9]} 21. e4 {[%clk 0:01:25]} 21... Rxc3 {[%clk 0:03:13.6]} 22. bxc3
{[%clk 0:01:19.1]} 22... Rxg3 {[%clk 0:03:09.9]} 23. Rxf7 {[%clk 0:01:06.9]}
23... Bxe4+ {[%clk 0:03:08.6]} 24. Kh2 {[%clk 0:01:03.9]} 24... Rg2+ {[%clk
0:03:00.6]} 25. Kh3 {[%clk 0:01:02.2]} 25... Rg6 {[%clk 0:02:53]} 26. Rxh7
{[%clk 0:00:45.5]} 26... Rb6 {[%clk 0:02:42.9]} 27. Bd7+ {[%clk 0:00:30]} 27...
Kb7 {[%clk 0:02:41.5]} 28. Rh4 {[%clk 0:00:24.6]} 28... Bd5 {[%clk 0:02:35.2]}
29. e6 {[%clk 0:00:22.5]} 29... Be7 {[%clk 0:02:31.8]} 30. Rd4 {[%clk 0:00:20]}
30... Bxe6+ {[%clk 0:02:28.9]} 31. Bxe6 {[%clk 0:00:18]} 31... Rxe6 {[%clk
0:02:28.8]} 32. Rb1+ {[%clk 0:00:16.3]} 32... Kc8 {[%clk 0:02:26.3]} 33. Rg1
{[%clk 0:00:14.8]} 33... Bc5 {[%clk 0:02:24.2]} 34. Rg5 {[%clk 0:00:13.5]} 34...
Bxd4 {[%clk 0:02:22.7]} 35. cxd4 {[%clk 0:00:07.8]} 35... Re3+ {[%clk
0:02:21.5]} 36. Kg4 {[%clk 0:00:05.9]} 36... Re4+ {[%clk 0:02:20.6]} 0-1

[Event "Live Chess"]
[Site "Chess.com"]
[Date "2023.05.21"]
[Round "-"]
[White "YrrriKharkiv"]
[Black "OSmith06"]
[Result "1-0"]
[WhiteElo "2057"]
[BlackElo "1620"]
[TimeControl "300"]
[EndTime "1:46:18 PDT"]
[Termination "YrrriKharkiv won by resignation"]

1. d4 {[%clk 0:04:58.3]} 1... Nf6 {[%clk 0:04:58.6]} 2. Nf3 {[%clk 0:04:57.9]}
2... e6 {[%clk 0:04:56.2]} 3. c4 {[%clk 0:04:57.2]} 3... d5 {[%clk 0:04:55.2]}
4. Nc3 {[%clk 0:04:55.6]} 4... c5 {[%clk 0:04:52.3]} 5. cxd5 {[%clk 0:04:54.2]}
5... exd5 {[%clk 0:04:50.3]} 6. g3 {[%clk 0:04:53.6]} 6... Nc6 {[%clk 0:04:48]}
7. Bg2 {[%clk 0:04:52.7]} 7... cxd4 {[%clk 0:04:47.1]} 8. Nxd4 {[%clk
0:04:51.4]} 8... Nxd4 {[%clk 0:04:46.3]} 9. Qxd4 {[%clk 0:04:49.8]} 9... Be6
{[%clk 0:04:46]} 10. O-O {[%clk 0:04:43.2]} 10... Qc7 {[%clk 0:04:41]} 11. Bf4
{[%clk 0:04:33.9]} 11... Bd6 {[%clk 0:04:34.6]} 12. Nb5 {[%clk 0:04:31.8]} 1-0

[Event "Live Chess"]
[Site "Chess.com"]
[Date "2023.05.21"]
[Round "-"]
[White "Denz14"]
[Black "Hacker_2009"]
[Result "1/2-1/2"]
[WhiteElo "1046"]
[BlackElo "1908"]
[TimeControl "300"]
[EndTime "1:46:20 PDT"]
[Termination "Game drawn by repetition"]

1. e4 {[%clk 0:04:58.2]} 1... c5 {[%clk 0:04:58.2]} 2. Nf3 {[%clk 0:04:54.9]}
2... d6 {[%clk 0:04:57]} 3. d4 {[%clk 0:04:52.6]} 3... cxd4 {[%clk 0:04:56.9]}
4. Nxd4 {[%clk 0:04:50.8]} 4... Nf6 {[%clk 0:04:55.4]} 5. Nc3 {[%clk 0:04:46.4]}
5... a6 {[%clk 0:04:54.5]} 6. Bg5 {[%clk 0:04:44.2]} 6... e6 {[%clk 0:04:53.7]}
7. Bxf6 {[%clk 0:04:41.6]} 7... Qxf6 {[%clk 0:04:51.9]} 8. Qf3 {[%clk
0:04:37.5]} 8... Qxf3 {[%clk 0:04:50.4]} 9. Nxf3 {[%clk 0:04:34.5]} 9... Be7
{[%clk 0:04:49.7]} 10. O-O-O {[%clk 0:04:32.6]} 10... O-O {[%clk 0:04:49.3]} 11.
e5 {[%clk 0:04:22]} 11... dxe5 {[%clk 0:04:48.1]} 12. Nxe5 {[%clk 0:04:20.3]}
12... Bf6 {[%clk 0:04:47.7]} 13. f4 {[%clk 0:04:16.4]} 13... b5 {[%clk
0:04:46.2]} 14. Ne4 {[%clk 0:04:11.9]} 14... Be7 {[%clk 0:04:42.8]} 15. g3
{[%clk 0:04:04.3]} 15... Bb7 {[%clk 0:04:41.6]} 16. Bg2 {[%clk 0:04:02.2]} 16...
Nc6 {[%clk 0:04:40]} 17. Nc3 {[%clk 0:03:50.6]} 17... Rac8 {[%clk 0:04:28.2]}
18. Rd7 {[%clk 0:03:46.5]} 18... Ba8 {[%clk 0:04:20.9]} 19. Nxc6 {[%clk
0:03:42.8]} 19... Bxc6 {[%clk 0:04:20]} 20. Bxc6 {[%clk 0:03:40.9]} 20... Rxc6
{[%clk 0:04:19.1]} 21. Rxe7 {[%clk 0:03:39.9]} 21... Rd8 {[%clk 0:04:18.6]} 22.
Rd1 {[%clk 0:03:37.4]} 22... Rdc8 {[%clk 0:04:15.2]} 23. Rdd7 {[%clk 0:03:34.3]}
23... b4 {[%clk 0:04:14.1]} 24. Rxf7 {[%clk 0:03:27.5]} 24... bxc3 {[%clk
0:04:12.6]} 25. Rxg7+ {[%clk 0:03:26.3]} 25... Kf8 {[%clk 0:04:10.6]} 26. b3
{[%clk 0:03:19.3]} 26... e5 {[%clk 0:03:52.3]} 27. Rxh7 {[%clk 0:03:17.9]} 27...
Kg8 {[%clk 0:03:50.7]} 28. Rhg7+ {[%clk 0:03:13.3]} 28... Kh8 {[%clk 0:03:49]}
29. Rh7+ {[%clk 0:03:10.2]} 29... Kg8 {[%clk 0:03:48.2]} 30. Rdg7+ {[%clk
0:02:53.7]} 30... Kf8 {[%clk 0:03:47]} 31. Rd7 {[%clk 0:02:52.4]} 31... Kg8
{[%clk 0:03:45.8]} 1/2-1/2

[Event "Live Chess"]
[Site "Chess.com"]
[Date "2023.05.21"]
[Round "-"]
[White "SupremeTactician"]
[Black "Leonid_Starozhilov"]
[Result "1/2-1/2"]
[WhiteElo "2286"]
[BlackElo "2655"]
[TimeControl "300"]
[EndTime "1:47:08 PDT"]
[Termination "Game drawn by agreement"]

1. e4 {[%clk 0:04:58.4]} 1... g6 {[%clk 0:04:58.5]} 2. d4 {[%clk 0:04:56]} 2...
Bg7 {[%clk 0:04:58]} 3. Be3 {[%clk 0:04:55.9]} 3... c5 {[%clk 0:04:57]} 4. c3
{[%clk 0:04:55.3]} 4... Qb6 {[%clk 0:04:55.8]} 5. b3 {[%clk 0:04:52]} 5... cxd4
{[%clk 0:04:54.6]} 6. Bxd4 {[%clk 0:04:51.2]} 6... Bxd4 {[%clk 0:04:53]} 7. Qxd4
{[%clk 0:04:51.1]} 7... Nf6 {[%clk 0:04:47.8]} 8. Bd3 {[%clk 0:04:48.4]} 8...
Nc6 {[%clk 0:04:44.8]} 9. Qxb6 {[%clk 0:04:47.7]} 9... axb6 {[%clk 0:04:42.3]}
10. Nf3 {[%clk 0:04:47.6]} 10... d6 {[%clk 0:04:39.3]} 11. Nbd2 {[%clk
0:04:40.2]} 11... Be6 {[%clk 0:04:32.8]} 12. O-O {[%clk 0:04:35.4]} 12... O-O
{[%clk 0:04:23.8]} 13. Nd4 {[%clk 0:04:34.2]} 13... Rfc8 {[%clk 0:04:18.6]} 14.
Nxe6 {[%clk 0:04:32.3]} 14... fxe6 {[%clk 0:04:11.3]} 15. Nc4 {[%clk 0:04:31.7]}
15... Ra6 {[%clk 0:03:56.5]} 16. Ne3 {[%clk 0:04:29.8]} 16... Ra5 {[%clk
0:03:45.5]} 17. Nc4 {[%clk 0:04:28]} 17... Ra6 {[%clk 0:03:30.7]} 18. Ne3 {[%clk
0:04:11.1]} 18... Raa8 {[%clk 0:03:21.6]} 19. Nc4 {[%clk 0:04:10.2]} 19... Ne5
{[%clk 0:03:16.5]} 20. Nxe5 {[%clk 0:04:06.9]} 20... dxe5 {[%clk 0:03:16.4]} 21.
Bc4 {[%clk 0:04:04.3]} 21... Kf7 {[%clk 0:03:15.4]} 22. f3 {[%clk 0:04:03.3]}
22... b5 {[%clk 0:03:14.9]} 23. Bxb5 {[%clk 0:04:01.9]} 23... Rxc3 {[%clk
0:03:14.8]} 24. Bc4 {[%clk 0:04:01.3]} 24... Nd7 {[%clk 0:03:05.2]} 25. Rac1
{[%clk 0:03:35.6]} 25... Rxc1 {[%clk 0:03:03.7]} 26. Rxc1 {[%clk 0:03:35.5]}
26... Rxa2 {[%clk 0:03:02.1]} 27. Bb5 {[%clk 0:03:28.9]} 27... Nf6 {[%clk
0:02:47.7]} 28. Rc7 {[%clk 0:03:22]} 28... Rb2 {[%clk 0:02:40.2]} 29. Rxb7
{[%clk 0:03:18.7]} 29... Nh5 {[%clk 0:02:36.5]} 30. g3 {[%clk 0:03:17.7]} 30...
Nf6 {[%clk 0:02:32.7]} 31. Bc4 {[%clk 0:03:13.1]} 31... Rb1+ {[%clk 0:02:21.3]}
32. Kf2 {[%clk 0:03:02.6]} 32... Rb2+ {[%clk 0:02:20.2]} 33. Kg1 {[%clk
0:02:58.4]} 33... Rd2 {[%clk 0:02:14.4]} 34. g4 {[%clk 0:02:36]} 34... h5 {[%clk
0:02:08.5]} 35. g5 {[%clk 0:02:15.2]} 35... Ne8 {[%clk 0:02:05.6]} 36. h4 {[%clk
0:02:09.2]} 36... Nd6 {[%clk 0:02:03.1]} 37. Rb8 {[%clk 0:01:59.9]} 37... Rc2
{[%clk 0:01:57.1]} 38. Rh8 {[%clk 0:01:47.9]} 38... Nxc4 {[%clk 0:01:36.6]} 39.
bxc4 {[%clk 0:01:46.9]} 39... Rxc4 {[%clk 0:01:35.8]} 40. Kf2 {[%clk 0:01:45.6]}
40... Rc2+ {[%clk 0:01:31.7]} 41. Kg3 {[%clk 0:01:44.9]} 41... Ra2 {[%clk
0:01:29.5]} 42. Rc8 {[%clk 0:01:41.8]} 42... Rd2 {[%clk 0:01:26.4]} 43. Rb8
{[%clk 0:01:40.7]} 43... Rc2 {[%clk 0:01:17.1]} 44. Rd8 {[%clk 0:01:39.4]}
1/2-1/2